[Event "*** Titled Tuesday Blitz"]
[Site "Chess.com"]
[Date "2019.04.02"]
[Round "10"]
[White "GM_RobertoMogranzini"]
[Black "medalja"]
[Result "1-0"]
[WhiteElo "2466"]
[BlackElo "2310"]
[TimeControl "180+2"]
[EndTime "16:16:42 PDT"]
[Termination "GM_RobertoMogranzini won by resignation"]

1. e4 {[%clk 0:03:01.9]} 1... e6 {[%clk 0:02:59.8]} 2. d4 {[%clk 0:03:02.6]}
2... d5 {[%clk 0:03:01.7]} 3. Bd3 {[%clk 0:03:04.4]} 3... c5 {[%clk 0:03:00.2]}
4. exd5 {[%clk 0:02:59.7]} 4... Qxd5 {[%clk 0:02:58.8]} 5. Nf3 {[%clk
0:02:58.8]} 5... cxd4 {[%clk 0:02:59.1]} 6. O-O {[%clk 0:02:56.3]} 6... Nc6
{[%clk 0:02:59.4]} 7. Nbd2 {[%clk 0:02:56.3]} 7... Nf6 {[%clk 0:02:58.7]} 8. Nb3
{[%clk 0:02:56.9]} 8... Bd7 {[%clk 0:02:54.6]} 9. Re1 {[%clk 0:02:53.2]} 9...
Bb4 {[%clk 0:02:54.5]} 10. Bd2 {[%clk 0:02:50.3]} 10... Bd6 {[%clk 0:02:55.2]}
11. Bg5 {[%clk 0:02:45.5]} 11... h6 {[%clk 0:02:50.2]} 12. Bxf6 {[%clk
0:02:45.6]} 12... gxf6 {[%clk 0:02:52.1]} 13. Be4 {[%clk 0:02:40.2]} 13... Qh5
{[%clk 0:02:37]} 14. Nbxd4 {[%clk 0:02:34]} 14... Nxd4 {[%clk 0:02:15.2]} 15.
Qxd4 {[%clk 0:02:32.2]} 15... Be7 {[%clk 0:01:54.4]} 16. Rad1 {[%clk 0:02:22.2]}
16... Rd8 {[%clk 0:01:55.1]} 17. Qxa7 {[%clk 0:02:20]} 17... f5 {[%clk
0:01:50.8]} 18. Bxb7 {[%clk 0:02:16.9]} 18... Rg8 {[%clk 0:01:51.9]} 19. Rxd7
{[%clk 0:02:10.6]} 19... Kxd7 {[%clk 0:01:31.4]} 20. Qa4+ {[%clk 0:01:49.3]}
20... Kc7 {[%clk 0:01:29.6]} 21. Qc6+ {[%clk 0:01:49.7]} 21... Kb8 {[%clk
0:01:30.5]} 22. Ba6 {[%clk 0:01:30.7]} 22... Rxg2+ {[%clk 0:01:30]} 23. Kxg2
{[%clk 0:01:25.4]} 23... Qg4+ {[%clk 0:01:30.9]} 24. Kh1 {[%clk 0:01:25.6]}
24... Qb4 {[%clk 0:01:31.3]} 25. Qb5+ {[%clk 0:01:24.8]} 25... Qxb5 {[%clk
0:01:32.4]} 26. Bxb5 {[%clk 0:01:26.7]} 26... Bf6 {[%clk 0:01:31.5]} 27. c3
{[%clk 0:01:27.2]} 27... Kc7 {[%clk 0:01:31.7]} 28. a4 {[%clk 0:01:27.9]} 28...
Kb6 {[%clk 0:01:32.5]} 29. Kg2 {[%clk 0:01:26.9]} 29... Rg8+ {[%clk 0:01:32.9]}
30. Kf1 {[%clk 0:01:28.1]} 30... Rg4 {[%clk 0:01:34.2]} 31. Ke2 {[%clk
0:01:28.6]} 31... e5 {[%clk 0:01:32.1]} 32. Nd2 {[%clk 0:01:26.7]} 32... e4
{[%clk 0:01:32.2]} 33. Nc4+ {[%clk 0:01:26.4]} 33... Kc5 {[%clk 0:01:31.7]} 34.
Ne3 {[%clk 0:01:27.8]} 34... Rh4 {[%clk 0:01:31.3]} 35. Nxf5 {[%clk 0:01:28.6]}
35... Rxh2 {[%clk 0:01:32.4]} 36. Ng3 {[%clk 0:01:27.6]} 36... Kd5 {[%clk
0:01:28.2]} 37. Rd1+ {[%clk 0:01:27.5]} 37... Ke5 {[%clk 0:01:28.9]} 38. Bc6
{[%clk 0:01:26.7]} 38... Bh4 {[%clk 0:01:25.4]} 39. Rd5+ {[%clk 0:01:22.5]}
39... Kf4 {[%clk 0:01:20.2]} 40. Rf5+ {[%clk 0:01:22.1]} 40... Kg4 {[%clk
0:01:21.4]} 41. Rxf7 {[%clk 0:01:20.3]} 41... Bxg3 {[%clk 0:01:22.4]} 42. Rg7+
{[%clk 0:01:21.5]} 42... Kf4 {[%clk 0:01:22.6]} 43. Rxg3 {[%clk 0:01:23.4]}
43... h5 {[%clk 0:01:18.3]} 44. Re3 {[%clk 0:01:24.5]} 44... h4 {[%clk
0:01:18.9]} 45. Rxe4+ {[%clk 0:01:26]} 45... Kf5 {[%clk 0:01:20.3]} 46. a5
{[%clk 0:01:24.3]} 46... h3 {[%clk 0:01:20]} 47. Rh4 {[%clk 0:01:24.5]} 47...
Kg5 {[%clk 0:01:21.3]} 48. Rh8 {[%clk 0:01:24.3]} 48... Kg6 {[%clk 0:01:21.3]}
49. a6 {[%clk 0:01:25.2]} 49... Kg7 {[%clk 0:01:23.2]} 50. Rh4 {[%clk 0:01:26]}
50... Kf6 {[%clk 0:01:22.9]} 51. a7 {[%clk 0:01:27]} 1-0

[Event "*** Titled Tuesday Blitz"]
[Site "Chess.com"]
[Date "2019.04.02"]
[Round "10"]
[White "FairChess_on_YouTube"]
[Black "hansen"]
[Result "1-0"]
[WhiteElo "3034"]
[BlackElo "2804"]
[TimeControl "180+2"]
[EndTime "16:16:53 PDT"]
[Termination "FairChess_on_YouTube won by resignation"]

1. c3 {[%clk 0:03:01.8]} 1... e5 {[%clk 0:02:59.8]} 2. d4 {[%clk 0:03:02.1]}
2... Nc6 {[%clk 0:03:01.5]} 3. e4 {[%clk 0:03:01.9]} 3... Nf6 {[%clk 0:03:02.5]}
4. Nf3 {[%clk 0:03:01.4]} 4... Nxe4 {[%clk 0:02:52]} 5. d5 {[%clk 0:03:02.4]}
5... Nb8 {[%clk 0:02:43.5]} 6. Nxe5 {[%clk 0:02:51.4]} 6... Nf6 {[%clk
0:02:43.4]} 7. Bc4 {[%clk 0:02:26.9]} 7... d6 {[%clk 0:02:39.7]} 8. Nf3 {[%clk
0:02:22.6]} 8... Be7 {[%clk 0:02:40]} 9. O-O {[%clk 0:02:23.3]} 9... O-O {[%clk
0:02:41.9]} 10. h3 {[%clk 0:02:23.6]} 10... Nbd7 {[%clk 0:02:42.1]} 11. Re1
{[%clk 0:02:23.4]} 11... c6 {[%clk 0:02:34.6]} 12. dxc6 {[%clk 0:02:16.7]} 12...
bxc6 {[%clk 0:02:35.8]} 13. Nd4 {[%clk 0:02:18]} 13... Ne5 {[%clk 0:02:23.2]}
14. Bb3 {[%clk 0:02:17.8]} 14... Bd7 {[%clk 0:02:21.7]} 15. Bc2 {[%clk
0:02:13.4]} 15... Re8 {[%clk 0:02:19]} 16. Bg5 {[%clk 0:02:11.6]} 16... h6
{[%clk 0:02:19.1]} 17. Bf4 {[%clk 0:02:07.7]} 17... Bf8 {[%clk 0:02:17.4]} 18.
Nd2 {[%clk 0:02:06.9]} 18... Qb6 {[%clk 0:02:10.2]} 19. Rb1 {[%clk 0:01:48.1]}
19... a5 {[%clk 0:02:05.1]} 20. Bg3 {[%clk 0:01:42.9]} 20... c5 {[%clk
0:01:54.1]} 21. Nf5 {[%clk 0:01:38.1]} 21... Bc6 {[%clk 0:01:47.1]} 22. Bh4
{[%clk 0:01:34.5]} 22... Nfd7 {[%clk 0:00:59.7]} 23. Qh5 {[%clk 0:01:22.5]}
23... Re6 {[%clk 0:00:56.8]} 24. f4 {[%clk 0:01:13.8]} 24... g6 {[%clk
0:00:39.2]} 25. Nxh6+ {[%clk 0:01:07.4]} 25... Kg7 {[%clk 0:00:34]} 26. Nf5+
{[%clk 0:00:56.8]} 26... Kg8 {[%clk 0:00:28.3]} 27. Qg5 {[%clk 0:00:48.9]} 27...
f6 {[%clk 0:00:09]} 28. Qg3 {[%clk 0:00:48]} 1-0

[Event "*** Titled Tuesday Blitz"]
[Site "Chess.com"]
[Date "2019.04.02"]
[Round "10"]
[White "Roenko_Artur"]
[Black "Yurovskykh_Oleksandr"]
[Result "0-1"]
[WhiteElo "2273"]
[BlackElo "2517"]
[TimeControl "180+2"]
[EndTime "16:16:55 PDT"]
[Termination "Yurovskykh_Oleksandr won by resignation"]

1. e4 {[%clk 0:03:01.9]} 1... d5 {[%clk 0:02:55.3]} 2. exd5 {[%clk 0:03:02.5]}
2... Qxd5 {[%clk 0:02:57.2]} 3. Nc3 {[%clk 0:03:03.6]} 3... Qd8 {[%clk
0:02:58.4]} 4. d4 {[%clk 0:03:03.8]} 4... Nf6 {[%clk 0:03:00]} 5. Bc4 {[%clk
0:02:55.2]} 5... a6 {[%clk 0:03:01.1]} 6. Nf3 {[%clk 0:02:55.9]} 6... b5 {[%clk
0:03:02]} 7. Bb3 {[%clk 0:02:56.6]} 7... c5 {[%clk 0:03:03.4]} 8. dxc5 {[%clk
0:02:51.6]} 8... Qxd1+ {[%clk 0:03:05.3]} 9. Nxd1 {[%clk 0:02:47.9]} 9... e6
{[%clk 0:03:07.2]} 10. Be3 {[%clk 0:02:46.1]} 10... Bb7 {[%clk 0:03:08.5]} 11.
O-O {[%clk 0:02:39.4]} 11... Nbd7 {[%clk 0:03:04.6]} 12. a4 {[%clk 0:02:29.1]}
12... b4 {[%clk 0:02:55.1]} 13. c6 {[%clk 0:02:15.4]} 13... Bxc6 {[%clk
0:02:53.5]} 14. Nd4 {[%clk 0:02:16.5]} 14... Bb7 {[%clk 0:02:45.5]} 15. a5
{[%clk 0:02:10.5]} 15... Be7 {[%clk 0:02:40.8]} 16. c3 {[%clk 0:02:05.4]} 16...
bxc3 {[%clk 0:02:39]} 17. Nxc3 {[%clk 0:02:01.6]} 17... O-O {[%clk 0:02:38.4]}
18. Rfd1 {[%clk 0:01:56.2]} 18... Nc5 {[%clk 0:02:38.7]} 19. Bc2 {[%clk
0:01:52.6]} 19... Rac8 {[%clk 0:02:37.1]} 20. Rac1 {[%clk 0:01:27.8]} 20... g6
{[%clk 0:02:19.8]} 21. Bb1 {[%clk 0:01:12.2]} 21... Nd5 {[%clk 0:02:03.7]} 22.
Nxd5 {[%clk 0:01:05.2]} 22... Bxd5 {[%clk 0:02:05.6]} 23. b4 {[%clk 0:01:04.8]}
23... Nb3 {[%clk 0:01:58.6]} 24. Rxc8 {[%clk 0:00:57]} 24... Rxc8 {[%clk
0:01:58.4]} 25. b5 {[%clk 0:00:35]} 25... Nxd4 {[%clk 0:01:56.6]} 26. Bxd4
{[%clk 0:00:33.6]} 26... axb5 {[%clk 0:01:57.3]} 27. a6 {[%clk 0:00:34.7]} 27...
b4 {[%clk 0:01:32]} 28. a7 {[%clk 0:00:31.8]} 28... b3 {[%clk 0:01:32.4]} 29.
Bd3 {[%clk 0:00:24.2]} 29... Bc5 {[%clk 0:01:23.8]} 30. Be5 {[%clk 0:00:16.5]}
30... Bxa7 {[%clk 0:01:22.8]} 31. h3 {[%clk 0:00:11.7]} 31... Bb8 {[%clk
0:01:16.3]} 32. Bf6 {[%clk 0:00:10.5]} 32... Bf4 {[%clk 0:01:15.3]} 33. h4
{[%clk 0:00:09.2]} 33... Rc1 {[%clk 0:01:16.1]} 0-1

[Event "*** Titled Tuesday Blitz"]
[Site "Chess.com"]
[Date "2019.04.02"]
[Round "10"]
[White "europa2012"]
[Black "dopolian"]
[Result "0-1"]
[WhiteElo "2121"]
[BlackElo "2213"]
[TimeControl "180+2"]
[EndTime "16:16:56 PDT"]
[Termination "dopolian won by checkmate"]

1. d4 {[%clk 0:03:01.9]} 1... Nf6 {[%clk 0:03:00.1]} 2. c4 {[%clk 0:03:02.9]}
2... b6 {[%clk 0:03:01.2]} 3. Nf3 {[%clk 0:02:56.5]} 3... Bb7 {[%clk 0:03:02.2]}
4. g3 {[%clk 0:02:57.1]} 4... e6 {[%clk 0:03:02.4]} 5. Bg2 {[%clk 0:02:58.3]}
5... Bb4+ {[%clk 0:03:00.8]} 6. Nbd2 {[%clk 0:02:59.2]} 6... O-O {[%clk
0:03:01.1]} 7. O-O {[%clk 0:03:00.2]} 7... Bxd2 {[%clk 0:02:56.6]} 8. Qxd2
{[%clk 0:03:00.2]} 8... Ne4 {[%clk 0:02:57.3]} 9. Qc2 {[%clk 0:03:01.4]} 9... d5
{[%clk 0:02:50.9]} 10. cxd5 {[%clk 0:02:59.5]} 10... exd5 {[%clk 0:02:51.6]} 11.
Ne5 {[%clk 0:02:59.7]} 11... Nd7 {[%clk 0:02:50.3]} 12. Bf4 {[%clk 0:02:58.6]}
12... Nxe5 {[%clk 0:02:50.4]} 13. Bxe5 {[%clk 0:02:58]} 13... Rc8 {[%clk
0:02:51]} 14. f3 {[%clk 0:02:55]} 14... Nd6 {[%clk 0:02:46.7]} 15. Bh3 {[%clk
0:02:53.6]} 15... Rb8 {[%clk 0:02:41.4]} 16. b3 {[%clk 0:02:52.2]} 16... Bc8
{[%clk 0:02:30.5]} 17. Bg2 {[%clk 0:02:50.7]} 17... Bf5 {[%clk 0:02:31.2]} 18.
Qc6 {[%clk 0:02:48.1]} 18... Be6 {[%clk 0:02:23.3]} 19. Rac1 {[%clk 0:02:45.7]}
19... Rc8 {[%clk 0:02:22]} 20. Bxd6 {[%clk 0:02:38.3]} 20... Qxd6 {[%clk
0:02:20.2]} 21. Qxd6 {[%clk 0:02:38.8]} 21... cxd6 {[%clk 0:02:21.3]} 22. f4
{[%clk 0:02:37]} 22... f5 {[%clk 0:02:12.2]} 23. Kf2 {[%clk 0:02:28.7]} 23...
Kf7 {[%clk 0:02:11.7]} 24. Rfd1 {[%clk 0:02:26.9]} 24... Ke7 {[%clk 0:02:11.7]}
25. Ke3 {[%clk 0:02:22.9]} 25... Rfd8 {[%clk 0:02:07]} 26. Kd2 {[%clk
0:02:21.8]} 26... Bf7 {[%clk 0:02:00.7]} 27. Rxc8 {[%clk 0:02:18.1]} 27... Rxc8
{[%clk 0:02:00.7]} 28. Rc1 {[%clk 0:02:19.7]} 28... Rxc1 {[%clk 0:02:01.8]} 29.
Kxc1 {[%clk 0:02:21]} 29... Ke6 {[%clk 0:01:59.8]} 30. e3 {[%clk 0:02:21.3]}
30... Be8 {[%clk 0:01:59.9]} 31. a3 {[%clk 0:02:21.8]} 31... Bb5 {[%clk
0:01:56.1]} 32. b4 {[%clk 0:02:22.6]} 32... Bd3 {[%clk 0:01:56]} 33. Kd2 {[%clk
0:02:23.1]} 33... Be4 {[%clk 0:01:57]} 34. Bxe4 {[%clk 0:02:18.5]} 34... dxe4
{[%clk 0:01:45.4]} 35. Kc3 {[%clk 0:02:16.4]} 35... a6 {[%clk 0:01:42.5]} 36. a4
{[%clk 0:02:13.9]} 36... Kd5 {[%clk 0:01:38.4]} 37. a5 {[%clk 0:02:06.3]} 37...
b5 {[%clk 0:01:19.2]} 38. Kb3 {[%clk 0:02:06.5]} 38... Ke6 {[%clk 0:01:20.1]}
39. Kc3 {[%clk 0:02:07.4]} 39... Kf6 {[%clk 0:01:21.2]} 40. d5 {[%clk
0:02:05.7]} 40... Kg6 {[%clk 0:01:08.5]} 41. Kd4 {[%clk 0:02:03.9]} 41... Kh5
{[%clk 0:01:04.6]} 42. h3 {[%clk 0:02:02.2]} 42... g5 {[%clk 0:01:04.6]} 43. g4+
{[%clk 0:01:49.2]} 43... fxg4 {[%clk 0:01:04.2]} 44. hxg4+ {[%clk 0:01:50.5]}
44... Kxg4 {[%clk 0:01:04.7]} 45. Kxe4 {[%clk 0:01:51.7]} 45... gxf4 {[%clk
0:01:01.2]} 46. exf4 {[%clk 0:01:52.6]} 46... h5 {[%clk 0:01:02.4]} 47. f5
{[%clk 0:01:53.4]} 47... Kg5 {[%clk 0:01:03.2]} 48. f6 {[%clk 0:01:50.8]} 48...
Kxf6 {[%clk 0:01:04.2]} 49. Kf4 {[%clk 0:01:52.7]} 49... h4 {[%clk 0:01:03.7]}
50. Kg4 {[%clk 0:01:54.2]} 50... Ke5 {[%clk 0:01:05]} 51. Kxh4 {[%clk
0:01:56.1]} 51... Kxd5 {[%clk 0:01:06.4]} 52. Kg4 {[%clk 0:01:57.3]} 52... Kc4
{[%clk 0:01:07.8]} 53. Kf4 {[%clk 0:01:58.9]} 53... Kxb4 {[%clk 0:01:09]} 54.
Ke4 {[%clk 0:02:00.6]} 54... Kxa5 {[%clk 0:01:10.9]} 55. Kd5 {[%clk 0:02:01.8]}
55... Kb4 {[%clk 0:01:12]} 56. Kxd6 {[%clk 0:02:03.7]} 56... a5 {[%clk
0:01:13.5]} 57. Kd5 {[%clk 0:02:05.6]} 57... a4 {[%clk 0:01:15.4]} 58. Kd4
{[%clk 0:02:07.1]} 58... a3 {[%clk 0:01:16.9]} 59. Kd3 {[%clk 0:02:09]} 59... a2
{[%clk 0:01:18.4]} 60. Kc2 {[%clk 0:02:10.9]} 60... a1=Q {[%clk 0:01:19.8]} 61.
Kd2 {[%clk 0:02:11.9]} 61... Qc3+ {[%clk 0:01:20.8]} 62. Ke2 {[%clk 0:02:13.5]}
62... Kc4 {[%clk 0:01:21.8]} 63. Kf2 {[%clk 0:02:14.6]} 63... b4 {[%clk
0:01:23.4]} 64. Ke2 {[%clk 0:02:15.9]} 64... b3 {[%clk 0:01:25.3]} 65. Kf2
{[%clk 0:02:16.8]} 65... b2 {[%clk 0:01:26.7]} 66. Ke2 {[%clk 0:02:10.1]} 66...
b1=Q {[%clk 0:01:28.6]} 67. Kf2 {[%clk 0:02:11.5]} 67... Qbe1+ {[%clk
0:01:28.6]} 68. Kg2 {[%clk 0:02:12.2]} 68... Qcg3# {[%clk 0:01:30]} 0-1

[Event "*** Titled Tuesday Blitz"]
[Site "Chess.com"]
[Date "2019.04.02"]
[Round "10"]
[White "francogreek"]
[Black "Mikhail_Golubev"]
[Result "0-1"]
[WhiteElo "2414"]
[BlackElo "2441"]
[TimeControl "180+2"]
[EndTime "16:16:56 PDT"]
[Termination "Mikhail_Golubev won by resignation"]

1. Nf3 {[%clk 0:03:01.9]} 1... d6 {[%clk 0:03:00.1]} 2. g3 {[%clk 0:03:03.3]}
2... g6 {[%clk 0:03:00.6]} 3. Bg2 {[%clk 0:03:04.5]} 3... Bg7 {[%clk 0:03:02.1]}
4. O-O {[%clk 0:03:05.9]} 4... e5 {[%clk 0:02:59.4]} 5. d3 {[%clk 0:03:05.5]}
5... Nc6 {[%clk 0:02:57.9]} 6. c4 {[%clk 0:03:06.3]} 6... h6 {[%clk 0:02:58.2]}
7. Nc3 {[%clk 0:03:06.6]} 7... f5 {[%clk 0:02:57]} 8. Rb1 {[%clk 0:03:07]} 8...
a5 {[%clk 0:02:57.8]} 9. a3 {[%clk 0:03:07.8]} 9... g5 {[%clk 0:02:58.8]} 10. e4
{[%clk 0:03:07.5]} 10... f4 {[%clk 0:02:50.7]} 11. b4 {[%clk 0:03:07.8]} 11...
axb4 {[%clk 0:02:45.8]} 12. axb4 {[%clk 0:03:09.7]} 12... g4 {[%clk 0:02:43.6]}
13. Nh4 {[%clk 0:03:08.9]} 13... f3 {[%clk 0:02:38.4]} 14. Bh1 {[%clk
0:02:58.2]} 14... Nge7 {[%clk 0:02:21.8]} 15. h3 {[%clk 0:02:52.2]} 15... Nd4
{[%clk 0:01:57.6]} 16. hxg4 {[%clk 0:02:26.1]} 16... Bxg4 {[%clk 0:01:56.8]} 17.
Nb5 {[%clk 0:02:27.3]} 17... Nec6 {[%clk 0:01:25.1]} 18. Be3 {[%clk 0:01:48]}
18... O-O {[%clk 0:00:31.6]} 19. Bxd4 {[%clk 0:01:46.2]} 19... exd4 {[%clk
0:00:32.7]} 20. Bxf3 {[%clk 0:01:45.1]} 20... Rxf3 {[%clk 0:00:32]} 21. Nxf3
{[%clk 0:01:47]} 21... Qf6 {[%clk 0:00:20]} 22. Nxc7 {[%clk 0:01:32.9]} 22...
Bxf3 {[%clk 0:00:19.6]} 23. Nxa8 {[%clk 0:01:28.2]} 23... Bxd1 {[%clk
0:00:18.7]} 24. Rbxd1 {[%clk 0:01:30.1]} 24... Qf3 {[%clk 0:00:18.1]} 25. Nc7
{[%clk 0:01:24.2]} 25... Ne5 {[%clk 0:00:18.5]} 26. Ne8 {[%clk 0:01:21.3]} 26...
Ng4 {[%clk 0:00:16]} 27. Rd2 {[%clk 0:01:12.3]} 27... Be5 {[%clk 0:00:13.5]} 28.
c5 {[%clk 0:01:06.5]} 28... dxc5 {[%clk 0:00:12]} 29. bxc5 {[%clk 0:01:08.4]}
29... h5 {[%clk 0:00:12.9]} 30. Nd6 {[%clk 0:01:07.2]} 30... h4 {[%clk
0:00:13.1]} 31. Nf5 {[%clk 0:01:08.4]} 31... h3 {[%clk 0:00:11.9]} 0-1

[Event "*** Titled Tuesday Blitz"]
[Site "Chess.com"]
[Date "2019.04.02"]
[Round "10"]
[White "Oleg_Papayan"]
[Black "cstevens1"]
[Result "1-0"]
[WhiteElo "2532"]
[BlackElo "2689"]
[TimeControl "180+2"]
[EndTime "16:17:02 PDT"]
[Termination "Oleg_Papayan won by checkmate"]

1. e4 {[%clk 0:03:01.9]} 1... c5 {[%clk 0:01:47.3]} 2. Nf3 {[%clk 0:03:01.9]}
2... e6 {[%clk 0:01:47.9]} 3. d4 {[%clk 0:03:02.6]} 3... cxd4 {[%clk 0:01:49.1]}
4. Nxd4 {[%clk 0:03:04.5]} 4... a6 {[%clk 0:01:50.2]} 5. Nc3 {[%clk 0:03:05.9]}
5... Qc7 {[%clk 0:01:50.9]} 6. Be2 {[%clk 0:03:05.3]} 6... Nc6 {[%clk
0:01:50.8]} 7. O-O {[%clk 0:03:03.4]} 7... Nf6 {[%clk 0:01:52]} 8. Be3 {[%clk
0:02:51.5]} 8... Bb4 {[%clk 0:01:51.4]} 9. f3 {[%clk 0:02:32]} 9... O-O {[%clk
0:01:37.4]} 10. Na4 {[%clk 0:02:19.9]} 10... Bd6 {[%clk 0:01:33.2]} 11. Nxc6
{[%clk 0:01:58.1]} 11... bxc6 {[%clk 0:01:11.5]} 12. Kh1 {[%clk 0:01:51.2]}
12... Be7 {[%clk 0:00:59.2]} 13. Nb6 {[%clk 0:01:49.1]} 13... Rb8 {[%clk
0:00:59.8]} 14. Nxc8 {[%clk 0:01:50.5]} 14... Qxc8 {[%clk 0:00:58.5]} 15. b3
{[%clk 0:01:45.2]} 15... d5 {[%clk 0:00:57.1]} 16. Bd3 {[%clk 0:01:33.3]} 16...
a5 {[%clk 0:00:54.8]} 17. e5 {[%clk 0:01:32.8]} 17... Nd7 {[%clk 0:00:55.5]} 18.
f4 {[%clk 0:01:34.3]} 18... Qc7 {[%clk 0:00:54.7]} 19. Rf3 {[%clk 0:01:34.6]}
19... g6 {[%clk 0:00:52.4]} 20. Rh3 {[%clk 0:01:32.8]} 20... Rfd8 {[%clk
0:00:23.3]} 21. Qg4 {[%clk 0:01:32.3]} 21... Nf8 {[%clk 0:00:21.3]} 22. Rf1
{[%clk 0:01:28.5]} 22... a4 {[%clk 0:00:22]} 23. f5 {[%clk 0:01:10.3]} 23...
exf5 {[%clk 0:00:22.5]} 24. Rxf5 {[%clk 0:01:04.7]} 24... Bb4 {[%clk 0:00:12.5]}
25. Rhf3 {[%clk 0:00:56.4]} 25... Rd7 {[%clk 0:00:13.2]} 26. Bh6 {[%clk
0:00:41.6]} 26... Re8 {[%clk 0:00:11.8]} 27. e6 {[%clk 0:00:37.5]} 27... Rxe6
{[%clk 0:00:11.8]} 28. Qxb4 {[%clk 0:00:38]} 28... gxf5 {[%clk 0:00:12.8]} 29.
Qxf8# {[%clk 0:00:36.7]} 1-0

[Event "*** Titled Tuesday Blitz"]
[Site "Chess.com"]
[Date "2019.04.02"]
[Round "10"]
[White "scrapnel"]
[Black "Kimster98"]
[Result "1/2-1/2"]
[WhiteElo "2529"]
[BlackElo "2591"]
[TimeControl "180+2"]
[EndTime "16:17:08 PDT"]
[Termination "Game drawn by repetition"]

1. d4 {[%clk 0:02:59.9]} 1... Nf6 {[%clk 0:03:00.4]} 2. c4 {[%clk 0:03:00.6]}
2... e6 {[%clk 0:03:00.8]} 3. Nc3 {[%clk 0:03:00.6]} 3... Bb4 {[%clk 0:03:00.5]}
4. Qc2 {[%clk 0:03:01.8]} 4... O-O {[%clk 0:03:00.6]} 5. a3 {[%clk 0:03:02.3]}
5... Bxc3+ {[%clk 0:03:01.8]} 6. Qxc3 {[%clk 0:03:03.6]} 6... d5 {[%clk
0:03:03]} 7. Bg5 {[%clk 0:03:01.9]} 7... h6 {[%clk 0:03:03.5]} 8. Bh4 {[%clk
0:03:00.7]} 8... dxc4 {[%clk 0:03:03.6]} 9. Qxc4 {[%clk 0:02:56.9]} 9... b6
{[%clk 0:03:05]} 10. Nf3 {[%clk 0:02:50.3]} 10... Ba6 {[%clk 0:03:05.2]} 11. Qa4
{[%clk 0:02:49.9]} 11... c5 {[%clk 0:02:58.6]} 12. dxc5 {[%clk 0:02:42]} 12...
bxc5 {[%clk 0:03:00.5]} 13. Qc2 {[%clk 0:02:36.9]} 13... Qb6 {[%clk 0:02:48.6]}
14. Bxf6 {[%clk 0:02:34.1]} 14... gxf6 {[%clk 0:02:49.4]} 15. e3 {[%clk
0:02:32.8]} 15... Bxf1 {[%clk 0:02:48.1]} 16. Kxf1 {[%clk 0:02:31.7]} 16... Nc6
{[%clk 0:02:43.2]} 17. Qc3 {[%clk 0:02:23.8]} 17... Rab8 {[%clk 0:02:39.7]} 18.
Rb1 {[%clk 0:02:18.5]} 18... Kg7 {[%clk 0:02:38.7]} 19. h4 {[%clk 0:02:18.5]}
19... Qb3 {[%clk 0:02:11.7]} 20. Qxb3 {[%clk 0:02:03]} 20... Rxb3 {[%clk
0:02:13.6]} 21. Nd2 {[%clk 0:02:03.9]} 21... Rb7 {[%clk 0:02:14]} 22. Ke2 {[%clk
0:01:31.9]} 22... Rfb8 {[%clk 0:02:13.1]} 23. Rhc1 {[%clk 0:01:06.9]} 23... Rxb2
{[%clk 0:02:07]} 24. Rxb2 {[%clk 0:01:08.2]} 24... Rxb2 {[%clk 0:02:08.9]} 25.
Rxc5 {[%clk 0:01:09.6]} 25... Ne5 {[%clk 0:01:39.1]} 26. f4 {[%clk 0:01:07.4]}
26... Nd7 {[%clk 0:01:37.7]} 27. Rc7 {[%clk 0:00:50.8]} 27... Nb6 {[%clk
0:01:38.8]} 28. Kd3 {[%clk 0:00:49.3]} 28... Nd5 {[%clk 0:01:22.6]} 29. Rxa7
{[%clk 0:00:41.8]} 29... f5 {[%clk 0:01:24]} 30. Nc4 {[%clk 0:00:39.8]} 30...
Rxg2 {[%clk 0:01:22.6]} 31. Ne5 {[%clk 0:00:36.1]} 31... Rg3 {[%clk 0:01:23.7]}
32. Kd4 {[%clk 0:00:35.5]} 32... Rxe3 {[%clk 0:01:19.9]} 33. Rxf7+ {[%clk
0:00:36.3]} 33... Kg8 {[%clk 0:01:20.8]} 34. Rb7 {[%clk 0:00:37.1]} 34... Re4+
{[%clk 0:01:21.1]} 35. Kc5 {[%clk 0:00:38.4]} 35... Nxf4 {[%clk 0:01:21.7]} 36.
Kd6 {[%clk 0:00:36.8]} 36... Ra4 {[%clk 0:00:56.3]} 37. Rb8+ {[%clk 0:00:34.4]}
37... Kg7 {[%clk 0:00:56.2]} 38. Rb7+ {[%clk 0:00:35.6]} 38... Kg8 {[%clk
0:00:56.4]} 39. Rb8+ {[%clk 0:00:36.8]} 39... Kg7 {[%clk 0:00:57.5]} 40. Rb7+
{[%clk 0:00:38.1]} 40... Kg8 {[%clk 0:00:59]} 41. Rb8+ {[%clk 0:00:39.4]} 41...
Kg7 {[%clk 0:01:00]} 1/2-1/2